[Event "Titled Tuesday Blitz May 10 Early 2022"]
[White "Bodnar, Nikolay"]
[Black "Fromm, Marius"]
[WhiteFideId "14106469"]
[BlackFideId "12993190"]
[WhiteElo "2296"]
[BlackElo "2569"]
[Result "1-0"]
[Round "05"]
[TimeControl "180+1"]
[Date "2022.05.11"]
[WhiteClock "0:01:03"]
[BlackClock "0:00:02"]

1. e4 {[%clk 0:03:00]}  c5 {[%clk 0:02:59]} 2. Nf3 {[%clk 0:03:00]}  d6 {[%clk 0:02:59]} 3. d4 {[%clk 0:03:00]}  cxd4 {[%clk 0:03:00]} 4. Nxd4 {[%clk 0:03:00]}  Nf6 {[%clk 0:03:01]} 5. Nc3 {[%clk 0:03:00]}  a6 {[%clk 0:03:01]} 6. f3 {[%clk 0:03:00]}  e5 {[%clk 0:03:01]} 7. Nb3 {[%clk 0:03:01]}  Be6 {[%clk 0:03:02]} 8. Be3 {[%clk 0:03:01]}  h5 {[%clk 0:03:02]} 9. Qd2 {[%clk 0:02:57]}  Nbd7 {[%clk 0:03:03]} 10. Nd5 {[%clk 0:02:57]}  Bxd5 {[%clk 0:03:03]} 11. exd5 {[%clk 0:02:58]}  g6 {[%clk 0:03:04]} 12. c4 {[%clk 0:02:57]}  Bg7 {[%clk 0:03:04]} 13. Be2 {[%clk 0:02:57]}  b6 {[%clk 0:03:03]} 14. O-O {[%clk 0:02:56]}  O-O {[%clk 0:03:04]} 15. Rac1 {[%clk 0:02:57]}  Re8 {[%clk 0:03:03]} 16. Na1 {[%clk 0:02:57]}  e4 {[%clk 0:02:48]} 17. f4 {[%clk 0:02:55]}  Ng4 {[%clk 0:02:49]} 18. Bxg4 {[%clk 0:02:55]}  hxg4 {[%clk 0:02:50]} 19. b3 {[%clk 0:02:53]}  f5 {[%clk 0:02:39]} 20. Nc2 {[%clk 0:02:52]}  Nc5 {[%clk 0:02:39]} 21. Nb4 {[%clk 0:02:48]}  Qh4 {[%clk 0:02:29]} 22. g3 {[%clk 0:02:43]}  Qf6 {[%clk 0:02:22]} 23. Nc6 {[%clk 0:02:41]}  Nd3 {[%clk 0:02:21]} 24. Rcd1 {[%clk 0:02:29]}  b5 {[%clk 0:02:21]} 25. Bd4 {[%clk 0:02:23]}  Qf7 {[%clk 0:01:47]} 26. Qe3 {[%clk 0:02:23]}  bxc4 {[%clk 0:01:46]} 27. bxc4 {[%clk 0:02:22]}  Rac8 {[%clk 0:01:36]} 28. Rb1 {[%clk 0:02:16]}  Rc7 {[%clk 0:01:23]} 29. Rb3 {[%clk 0:02:08]}  Nc5 {[%clk 0:01:08]} 30. Rb6 {[%clk 0:01:55]}  Bxd4 {[%clk 0:01:02]} 31. Qxd4 {[%clk 0:01:56]}  Qg7 {[%clk 0:01:00]} 32. Qxg7+ {[%clk 0:01:46]}  Kxg7 {[%clk 0:01:01]} 33. Kf2 {[%clk 0:01:46]}  e3+ {[%clk 0:00:55]} 34. Ke2 {[%clk 0:01:46]}  Re4 {[%clk 0:00:56]} 35. Rc1 {[%clk 0:01:42]}  Rb7 {[%clk 0:00:44]} 36. Rxb7+ {[%clk 0:01:35]}  Nxb7 {[%clk 0:00:45]} 37. Rc3 {[%clk 0:01:34]}  Nc5 {[%clk 0:00:45]} 38. Na5 {[%clk 0:01:30]}  Rd4 {[%clk 0:00:31]} 39. Rxe3 {[%clk 0:01:26]}  Ne4 {[%clk 0:00:31]} 40. Rd3 {[%clk 0:01:23]}  Rxd3 {[%clk 0:00:26]} 41. Kxd3 {[%clk 0:01:24]}  Kf6 {[%clk 0:00:23]} 42. Nb3 {[%clk 0:01:21]}  g5 {[%clk 0:00:14]} 43. Kd4 {[%clk 0:01:09]}  Nf2 {[%clk 0:00:04]} 44. fxg5+ {[%clk 0:01:05]}  Kxg5 {[%clk 0:00:05]} 45. c5 {[%clk 0:01:05]}  dxc5+ {[%clk 0:00:05]} 46. Nxc5 {[%clk 0:01:03]}  Kf6 {[%clk 0:00:05]} 47. d6 {[%clk 0:01:04]}  a5 {[%clk 0:00:02]} 48. a4 {[%clk 0:01:03]} 1-0


[Site "https://www.chess.com"]

[Event "Titled Tuesday Blitz May 10 Early 2022"]
[White "Buscar, Michael"]
[Black "Tuleyeva-Aketayeva, Dana"]
[WhiteFideId "2603616"]
[BlackFideId "13701932"]
[WhiteElo "2010"]
[BlackElo "1875"]
[Result "1/2-1/2"]
[Round "05"]
[TimeControl "180+1"]
[Date "2022.05.11"]
[WhiteClock "0:00:28"]
[BlackClock "0:00:13"]

1. Nf3 {[%clk 0:03:00]}  Nf6 {[%clk 0:02:57]} 2. b3 {[%clk 0:03:01]}  g6 {[%clk 0:02:57]} 3. Bb2 {[%clk 0:03:01]}  Bg7 {[%clk 0:02:57]} 4. e4 {[%clk 0:03:02]}  d6 {[%clk 0:02:54]} 5. Bc4 {[%clk 0:03:01]}  O-O {[%clk 0:02:54]} 6. Qe2 {[%clk 0:03:01]}  Nc6 {[%clk 0:02:50]} 7. O-O {[%clk 0:02:47]}  Bg4 {[%clk 0:02:49]} 8. h3 {[%clk 0:02:46]}  Bxf3 {[%clk 0:02:49]} 9. Qxf3 {[%clk 0:02:44]}  Ne5 {[%clk 0:02:50]} 10. Bxe5 {[%clk 0:02:42]}  dxe5 {[%clk 0:02:50]} 11. d3 {[%clk 0:02:33]}  c6 {[%clk 0:02:49]} 12. b4 {[%clk 0:02:32]}  Nd7 {[%clk 0:02:31]} 13. Nd2 {[%clk 0:02:25]}  b5 {[%clk 0:02:27]} 14. Bb3 {[%clk 0:02:25]}  a5 {[%clk 0:02:25]} 15. a3 {[%clk 0:02:19]}  Bh6 {[%clk 0:01:36]} 16. Qe2 {[%clk 0:02:10]}  Bxd2 {[%clk 0:01:35]} 17. Qxd2 {[%clk 0:02:10]}  a4 {[%clk 0:01:33]} 18. Ba2 {[%clk 0:02:10]}  Kg7 {[%clk 0:01:33]} 19. f4 {[%clk 0:02:06]}  Qb6+ {[%clk 0:01:31]} 20. Kh1 {[%clk 0:02:04]}  f6 {[%clk 0:00:55]} 21. Be6 {[%clk 0:01:55]}  Qc7 {[%clk 0:00:52]} 22. Bxd7 {[%clk 0:01:55]}  Qxd7 {[%clk 0:00:52]} 23. fxe5 {[%clk 0:01:56]}  fxe5 {[%clk 0:00:52]} 24. Qg5 {[%clk 0:01:51]}  Qe6 {[%clk 0:00:51]} 25. h4 {[%clk 0:01:35]}  h6 {[%clk 0:00:51]} 26. Qg3 {[%clk 0:01:28]}  Rf6 {[%clk 0:00:50]} 27. Rf3 {[%clk 0:01:17]}  Raf8 {[%clk 0:00:43]} 28. Raf1 {[%clk 0:01:15]}  Rxf3 {[%clk 0:00:20]} 29. Rxf3 {[%clk 0:01:14]}  Rxf3 {[%clk 0:00:20]} 30. gxf3 {[%clk 0:01:14]}  Qf6 {[%clk 0:00:19]} 31. Kg2 {[%clk 0:01:13]}  Qf4 {[%clk 0:00:18]} 32. Qxf4 {[%clk 0:01:01]}  exf4 {[%clk 0:00:19]} 33. c4 {[%clk 0:00:58]}  e5 {[%clk 0:00:18]} 34. Kh3 {[%clk 0:00:48]}  Kf6 {[%clk 0:00:15]} 35. Kg4 {[%clk 0:00:47]}  h5+ {[%clk 0:00:14]} 36. Kh3 {[%clk 0:00:47]}  Ke6 {[%clk 0:00:14]} 37. Kg2 {[%clk 0:00:43]}  Kd6 {[%clk 0:00:14]} 38. Kf2 {[%clk 0:00:42]}  Ke6 {[%clk 0:00:15]} 39. Ke2 {[%clk 0:00:42]}  Kd6 {[%clk 0:00:15]} 40. Kd2 {[%clk 0:00:40]}  Ke6 {[%clk 0:00:15]} 41. Kd1 {[%clk 0:00:38]}  Kd6 {[%clk 0:00:15]} 42. Ke1 {[%clk 0:00:38]}  Ke6 {[%clk 0:00:15]} 43. Kf2 {[%clk 0:00:37]}  Kd6 {[%clk 0:00:14]} 44. Kg2 {[%clk 0:00:37]}  Ke6 {[%clk 0:00:14]} 45. Kh3 {[%clk 0:00:36]}  Kf6 {[%clk 0:00:14]} 46. Kh2 {[%clk 0:00:37]}  Ke6 {[%clk 0:00:13]} 47. Kh1 {[%clk 0:00:38]}  Kf6 {[%clk 0:00:13]} 48. Kg1 {[%clk 0:00:38]}  Ke6 {[%clk 0:00:13]} 49. Kf1 {[%clk 0:00:39]}  Kf6 {[%clk 0:00:13]} 50. Ke1 {[%clk 0:00:39]}  g5 {[%clk 0:00:13]} 51. hxg5+ {[%clk 0:00:28]}  Kxg5 {[%clk 0:00:13]} 52. Kf2 {[%clk 0:00:29]}  Kh4 {[%clk 0:00:13]} 53. Kg2 {[%clk 0:00:29]}  Kg5 {[%clk 0:00:13]} 54. Kh3 {[%clk 0:00:28]}  Kg6 {[%clk 0:00:13]} 55. Kh4 {[%clk 0:00:28]}  Kh6 {[%clk 0:00:13]} 56. Kh3 {[%clk 0:00:28]}  Kg5 {[%clk 0:00:13]} 57. Kh2 {[%clk 0:00:27]}  Kh4 {[%clk 0:00:13]} 58. Kg2 {[%clk 0:00:28]}  Kg5 {[%clk 0:00:13]} 59. Kh2 {[%clk 0:00:27]}  Kh4 {[%clk 0:00:13]} 60. Kg2 {[%clk 0:00:28]} 1/2-1/2


[Site "https://www.chess.com"]

[Event "Titled Tuesday Blitz May 10 Early 2022"]
[White "Carrasco Miranda, Andres"]
[Black "Silva, Mariana Sofia T."]
[WhiteFideId "3405990"]
[BlackFideId "1911899"]
[WhiteElo "2177"]
[BlackElo "1825"]
[Result "0-1"]
[Round "05"]
[TimeControl "180+1"]
[Date "2022.05.11"]
[WhiteClock "0:00:09"]
[BlackClock "0:00:10"]

1. d4 {[%clk 0:03:00]}  Nf6 {[%clk 0:02:28]} 2. c4 {[%clk 0:02:52]}  e6 {[%clk 0:02:27]} 3. g3 {[%clk 0:02:51]}  d5 {[%clk 0:02:26]} 4. Bg2 {[%clk 0:02:52]}  Be7 {[%clk 0:02:24]} 5. Nf3 {[%clk 0:02:52]}  O-O {[%clk 0:02:24]} 6. O-O {[%clk 0:02:52]}  dxc4 {[%clk 0:02:23]} 7. Qc2 {[%clk 0:02:51]}  a6 {[%clk 0:02:22]} 8. a4 {[%clk 0:02:50]}  Bd7 {[%clk 0:02:13]} 9. Qxc4 {[%clk 0:02:50]}  Bc6 {[%clk 0:02:13]} 10. Bg5 {[%clk 0:02:49]}  Nbd7 {[%clk 0:02:12]} 11. a5 {[%clk 0:02:46]}  h6 {[%clk 0:02:05]} 12. Bxf6 {[%clk 0:02:45]}  Nxf6 {[%clk 0:02:06]} 13. Rd1 {[%clk 0:02:44]}  Bd5 {[%clk 0:01:48]} 14. Qc2 {[%clk 0:02:27]}  Be4 {[%clk 0:01:46]} 15. Qc1 {[%clk 0:02:27]}  Nd5 {[%clk 0:01:35]} 16. Nc3 {[%clk 0:02:26]}  Bxf3 {[%clk 0:01:24]} 17. Bxf3 {[%clk 0:02:23]}  Nxc3 {[%clk 0:01:10]} 18. bxc3 {[%clk 0:02:21]}  c6 {[%clk 0:01:05]} 19. Qb2 {[%clk 0:02:16]}  Qc7 {[%clk 0:00:59]} 20. Rdb1 {[%clk 0:02:14]}  Rab8 {[%clk 0:00:53]} 21. e3 {[%clk 0:02:14]}  e5 {[%clk 0:00:47]} 22. Be2 {[%clk 0:02:05]}  exd4 {[%clk 0:00:43]} 23. cxd4 {[%clk 0:01:35]}  Bd6 {[%clk 0:00:38]} 24. Bf3 {[%clk 0:01:08]}  Rfe8 {[%clk 0:00:33]} 25. Kg2 {[%clk 0:00:32]}  c5 {[%clk 0:00:25]} 26. dxc5 {[%clk 0:00:18]}  Be5 {[%clk 0:00:24]} 27. Qb6 {[%clk 0:00:17]}  Qxb6 {[%clk 0:00:20]} 28. cxb6 {[%clk 0:00:17]}  Bxa1 {[%clk 0:00:20]} 29. Rxa1 {[%clk 0:00:18]}  Re5 {[%clk 0:00:19]} 30. Ra4 {[%clk 0:00:17]}  Rb5 {[%clk 0:00:18]} 31. Be4 {[%clk 0:00:14]}  Rb2 {[%clk 0:00:18]} 32. Kf3 {[%clk 0:00:14]}  g5 {[%clk 0:00:17]} 33. h4 {[%clk 0:00:14]}  Kg7 {[%clk 0:00:17]} 34. hxg5 {[%clk 0:00:14]}  hxg5 {[%clk 0:00:18]} 35. Bd5 {[%clk 0:00:13]}  Kf6 {[%clk 0:00:18]} 36. e4 {[%clk 0:00:13]}  Ke7 {[%clk 0:00:17]} 37. Rc4 {[%clk 0:00:13]}  Rb5 {[%clk 0:00:14]} 38. Rc7+ {[%clk 0:00:13]}  Kd6 {[%clk 0:00:15]} 39. Rxf7 {[%clk 0:00:13]}  Rxa5 {[%clk 0:00:14]} 40. Bxb7 {[%clk 0:00:13]}  Rb5 {[%clk 0:00:13]} 41. Bxa6 {[%clk 0:00:12]}  R5xb6 {[%clk 0:00:14]} 42. Bc4 {[%clk 0:00:12]}  Ke5 {[%clk 0:00:14]} 43. Bd5 {[%clk 0:00:11]}  Rg6 {[%clk 0:00:13]} 44. Rf5+ {[%clk 0:00:11]}  Kd6 {[%clk 0:00:13]} 45. Kg4 {[%clk 0:00:11]}  Re8 {[%clk 0:00:12]} 46. f3 {[%clk 0:00:09]}  Rg7 {[%clk 0:00:11]} 47. Rf6+ {[%clk 0:00:09]}  Ke5 {[%clk 0:00:11]} 48. Rf4 {[%clk 0:00:09]}  gxf4+ {[%clk 0:00:10]} 0-1


[Site "https://www.chess.com"]

[Event "Titled Tuesday Blitz May 10 Early 2022"]
[White "Ceres, Dragos"]
[Black "Martinez Alcantara, Jose Eduardo"]
[WhiteFideId "13905864"]
[BlackFideId "3805662"]
[WhiteElo "2150"]
[BlackElo "2690"]
[Result "0-1"]
[Round "05"]
[TimeControl "180+1"]
[Date "2022.05.11"]
[WhiteClock "0:00:06"]
[BlackClock "0:01:40"]

1. e4 {[%clk 0:03:00]}  c5 {[%clk 0:02:59]} 2. Nf3 {[%clk 0:02:57]}  d6 {[%clk 0:02:59]} 3. Bb5+ {[%clk 0:02:56]}  Nd7 {[%clk 0:02:59]} 4. O-O {[%clk 0:02:42]}  a6 {[%clk 0:02:59]} 5. Bd3 {[%clk 0:02:39]}  Ngf6 {[%clk 0:02:58]} 6. Re1 {[%clk 0:02:33]}  e6 {[%clk 0:02:59]} 7. c3 {[%clk 0:02:33]}  b5 {[%clk 0:02:58]} 8. Bc2 {[%clk 0:02:33]}  Bb7 {[%clk 0:02:56]} 9. d4 {[%clk 0:02:30]}  Be7 {[%clk 0:02:57]} 10. Nbd2 {[%clk 0:02:28]}  Rc8 {[%clk 0:02:56]} 11. Bd3 {[%clk 0:02:23]}  Qc7 {[%clk 0:02:55]} 12. Nf1 {[%clk 0:02:18]}  e5 {[%clk 0:02:55]} 13. d5 {[%clk 0:02:18]}  c4 {[%clk 0:02:55]} 14. Bc2 {[%clk 0:02:16]}  O-O {[%clk 0:02:56]} 15. Ng3 {[%clk 0:02:16]}  g6 {[%clk 0:02:55]} 16. Bh6 {[%clk 0:02:09]}  Rfe8 {[%clk 0:02:55]} 17. Qd2 {[%clk 0:02:09]}  Ng4 {[%clk 0:02:50]} 18. h4 {[%clk 0:01:53]}  Nxh6 {[%clk 0:02:43]} 19. Qxh6 {[%clk 0:01:54]}  Bf8 {[%clk 0:02:43]} 20. Qg5 {[%clk 0:01:42]}  Be7 {[%clk 0:02:41]} 21. Qh6 {[%clk 0:01:39]}  Bf8 {[%clk 0:02:39]} 22. Qg5 {[%clk 0:01:39]}  h6 {[%clk 0:02:38]} 23. Qd2 {[%clk 0:01:35]}  h5 {[%clk 0:02:33]} 24. Re3 {[%clk 0:01:09]}  f6 {[%clk 0:02:15]} 25. Ree1 {[%clk 0:00:58]}  Kh7 {[%clk 0:02:12]} 26. Qe2 {[%clk 0:00:55]}  Bh6 {[%clk 0:02:12]} 27. Nh2 {[%clk 0:00:49]}  Rg8 {[%clk 0:02:09]} 28. Qf3 {[%clk 0:00:46]}  Rcf8 {[%clk 0:02:06]} 29. Nhf1 {[%clk 0:00:42]}  Nc5 {[%clk 0:02:06]} 30. b4 {[%clk 0:00:39]}  cxb3 {[%clk 0:02:04]} 31. axb3 {[%clk 0:00:40]}  Bc8 {[%clk 0:02:04]} 32. Qe2 {[%clk 0:00:34]}  Bg4 {[%clk 0:02:03]} 33. f3 {[%clk 0:00:33]}  Bc8 {[%clk 0:02:04]} 34. c4 {[%clk 0:00:26]}  b4 {[%clk 0:02:04]} 35. Ne3 {[%clk 0:00:24]}  Qb6 {[%clk 0:01:56]} 36. Ngf1 {[%clk 0:00:23]}  Kh8 {[%clk 0:01:53]} 37. Kh2 {[%clk 0:00:22]}  Bf4+ {[%clk 0:01:51]} 38. g3 {[%clk 0:00:22]}  Bh6 {[%clk 0:01:52]} 39. Nd1 {[%clk 0:00:17]}  Qb7 {[%clk 0:01:52]} 40. Nf2 {[%clk 0:00:17]}  g5 {[%clk 0:01:42]} 41. hxg5 {[%clk 0:00:15]}  fxg5 {[%clk 0:01:42]} 42. Nd3 {[%clk 0:00:16]}  Nxd3 {[%clk 0:01:39]} 43. Bxd3 {[%clk 0:00:17]}  g4 {[%clk 0:01:40]} 44. fxg4 {[%clk 0:00:14]}  Bxg4 {[%clk 0:01:40]} 45. Qg2 {[%clk 0:00:14]}  Qb6 {[%clk 0:01:40]} 46. Ra2 {[%clk 0:00:13]}  h4 {[%clk 0:01:41]} 47. gxh4 {[%clk 0:00:08]}  Bf4+ {[%clk 0:01:40]} 48. Kh1 {[%clk 0:00:06]}  Bf3 {[%clk 0:01:40]} 0-1


[Site "https://www.chess.com"]

[Event "Titled Tuesday Blitz May 10 Early 2022"]
[White "Csonka, Balazs"]
[Black "Martin Carmona, Gaston Manuel"]
[WhiteFideId "742910"]
[BlackFideId "22284567"]
[WhiteElo "2404"]
[BlackElo "2162"]
[Result "1-0"]
[Round "05"]
[TimeControl "180+1"]
[Date "2022.05.11"]
[WhiteClock "0:00:03"]
[BlackClock "0:00:44"]

1. d4 {[%clk 0:03:00]}  Nf6 {[%clk 0:02:57]} 2. c4 {[%clk 0:03:00]}  e6 {[%clk 0:02:53]} 3. Nf3 {[%clk 0:02:58]}  d5 {[%clk 0:02:52]} 4. Nc3 {[%clk 0:02:55]}  c5 {[%clk 0:02:52]} 5. cxd5 {[%clk 0:02:53]}  Nxd5 {[%clk 0:02:53]} 6. e4 {[%clk 0:02:53]}  Nxc3 {[%clk 0:02:54]} 7. bxc3 {[%clk 0:02:53]}  cxd4 {[%clk 0:02:55]} 8. cxd4 {[%clk 0:02:53]}  Bb4+ {[%clk 0:02:56]} 9. Bd2 {[%clk 0:02:54]}  Bxd2+ {[%clk 0:02:56]} 10. Qxd2 {[%clk 0:02:54]}  O-O {[%clk 0:02:56]} 11. Rc1 {[%clk 0:02:53]}  Nd7 {[%clk 0:02:22]} 12. Bd3 {[%clk 0:02:39]}  b6 {[%clk 0:02:20]} 13. O-O {[%clk 0:02:35]}  Bb7 {[%clk 0:02:20]} 14. Qf4 {[%clk 0:01:49]}  Rc8 {[%clk 0:02:04]} 15. Rxc8 {[%clk 0:01:46]}  Qxc8 {[%clk 0:02:04]} 16. Rc1 {[%clk 0:01:46]}  Qd8 {[%clk 0:01:59]} 17. Qc7 {[%clk 0:01:20]}  Qc8 {[%clk 0:01:46]} 18. Qf4 {[%clk 0:00:58]}  Qd8 {[%clk 0:01:37]} 19. Qc7 {[%clk 0:00:44]}  Qc8 {[%clk 0:01:37]} 20. e5 {[%clk 0:00:31]}  h6 {[%clk 0:01:16]} 21. Rc2 {[%clk 0:00:18]}  g5 {[%clk 0:01:14]} 22. Qd6 {[%clk 0:00:15]}  Qd8 {[%clk 0:01:10]} 23. Rc7 {[%clk 0:00:15]}  Bxf3 {[%clk 0:01:09]} 24. Rxd7 {[%clk 0:00:13]}  Qa8 {[%clk 0:01:05]} 25. gxf3 {[%clk 0:00:07]}  Qxf3 {[%clk 0:01:06]} 26. Qa3 {[%clk 0:00:05]}  Qd1+ {[%clk 0:01:05]} 27. Bf1 {[%clk 0:00:03]}  Qg4+ {[%clk 0:01:02]} 28. Qg3 {[%clk 0:00:03]}  Qd1 {[%clk 0:01:01]} 29. h4 {[%clk 0:00:03]}  Qd2 {[%clk 0:01:01]} 30. hxg5 {[%clk 0:00:03]}  hxg5 {[%clk 0:01:02]} 31. Bg2 {[%clk 0:00:02]}  Rc8 {[%clk 0:01:01]} 32. Bf3 {[%clk 0:00:03]}  Rc1+ {[%clk 0:01:01]} 33. Kg2 {[%clk 0:00:02]}  Qe1 {[%clk 0:01:00]} 34. Qh2 {[%clk 0:00:03]}  Qf1+ {[%clk 0:00:48]} 35. Kg3 {[%clk 0:00:03]}  Rc3 {[%clk 0:00:45]} 36. Rd8+ {[%clk 0:00:02]}  Kg7 {[%clk 0:00:43]} 37. Qh8+ {[%clk 0:00:03]}  Kg6 {[%clk 0:00:44]} 38. Qf6+ {[%clk 0:00:03]} 1-0


[Site "https://www.chess.com"]

[Event "Titled Tuesday Blitz May 10 Early 2022"]
[White "Daneshvar, Bardiya"]
[Black "Harshavardhan G B"]
[WhiteFideId "12576468"]
[BlackFideId "25059009"]
[WhiteElo "2330"]
[BlackElo "1831"]
[Result "1-0"]
[Round "05"]
[TimeControl "180+1"]
[Date "2022.05.10"]
[WhiteClock "0:00:06"]
[BlackClock "0:00:06"]

1. b3 {[%clk 0:03:00]}  e5 {[%clk 0:02:56]} 2. Bb2 {[%clk 0:03:00]}  Nc6 {[%clk 0:02:54]} 3. c4 {[%clk 0:02:59]}  g6 {[%clk 0:02:53]} 4. g3 {[%clk 0:02:51]}  Bg7 {[%clk 0:02:52]} 5. Bg2 {[%clk 0:02:50]}  Nge7 {[%clk 0:02:53]} 6. Nc3 {[%clk 0:02:48]}  d6 {[%clk 0:02:52]} 7. e3 {[%clk 0:02:41]}  O-O {[%clk 0:02:49]} 8. Nge2 {[%clk 0:02:39]}  f5 {[%clk 0:02:45]} 9. d3 {[%clk 0:02:32]}  Be6 {[%clk 0:02:45]} 10. Nd5 {[%clk 0:02:24]}  Kh8 {[%clk 0:02:41]} 11. Qd2 {[%clk 0:02:14]}  a5 {[%clk 0:02:38]} 12. O-O {[%clk 0:02:09]}  Qd7 {[%clk 0:02:26]} 13. f4 {[%clk 0:02:07]}  Rfe8 {[%clk 0:02:16]} 14. e4 {[%clk 0:01:50]}  Nd8 {[%clk 0:01:54]} 15. fxe5 {[%clk 0:01:29]}  dxe5 {[%clk 0:01:51]} 16. d4 {[%clk 0:01:28]}  a4 {[%clk 0:00:44]} 17. dxe5 {[%clk 0:01:13]}  c6 {[%clk 0:00:43]} 18. Nef4 {[%clk 0:01:10]}  fxe4 {[%clk 0:00:40]} 19. Rad1 {[%clk 0:01:00]}  cxd5 {[%clk 0:00:27]} 20. cxd5 {[%clk 0:00:59]}  Bg4 {[%clk 0:00:27]} 21. e6 {[%clk 0:00:53]}  Qd6 {[%clk 0:00:26]} 22. Bxg7+ {[%clk 0:00:29]}  Kxg7 {[%clk 0:00:25]} 23. Rde1 {[%clk 0:00:30]}  axb3 {[%clk 0:00:12]} 24. axb3 {[%clk 0:00:28]}  Bf3 {[%clk 0:00:11]} 25. Bxf3 {[%clk 0:00:22]}  exf3 {[%clk 0:00:12]} 26. Qc3+ {[%clk 0:00:20]}  Kg8 {[%clk 0:00:11]} 27. Qxf3 {[%clk 0:00:20]}  Nf5 {[%clk 0:00:10]} 28. g4 {[%clk 0:00:18]}  Nd4 {[%clk 0:00:09]} 29. Qe4 {[%clk 0:00:15]}  Qb6 {[%clk 0:00:09]} 30. Kh1 {[%clk 0:00:12]}  Nxb3 {[%clk 0:00:09]} 31. Nxg6 {[%clk 0:00:09]}  Qd4 {[%clk 0:00:09]} 32. Qf5 {[%clk 0:00:06]}  Qg7 {[%clk 0:00:09]} 33. Ne5 {[%clk 0:00:05]}  Nd4 {[%clk 0:00:08]} 34. Qe4 {[%clk 0:00:05]}  Ra4 {[%clk 0:00:08]} 35. Nd7 {[%clk 0:00:04]}  Kh8 {[%clk 0:00:06]} 36. e7 {[%clk 0:00:02]}  Nf7 {[%clk 0:00:06]} 37. Nf6 {[%clk 0:00:03]}  Nd6 {[%clk 0:00:04]} 38. Nxe8 {[%clk 0:00:03]}  Nxe8 {[%clk 0:00:05]} 39. Rf8+ {[%clk 0:00:02]}  Qg8 {[%clk 0:00:04]} 40. Rxg8+ {[%clk 0:00:02]}  Kxg8 {[%clk 0:00:05]} 41. Qe5 {[%clk 0:00:02]}  Nf3 {[%clk 0:00:04]} 42. Qb8 {[%clk 0:00:03]}  Nxe1 {[%clk 0:00:04]} 43. Qxe8+ {[%clk 0:00:03]}  Kg7 {[%clk 0:00:05]} 44. Qf8+ {[%clk 0:00:04]}  Kg6 {[%clk 0:00:06]} 45. e8=Q+ {[%clk 0:00:05]}  Kg5 {[%clk 0:00:06]} 46. Qh5# {[%clk 0:00:06]} 1-0


[Site "https://www.chess.com"]